bitfinex-derivatives/quotes_ETHF0:USTF0_20250110
["timestamp","ask_amount","ask_price","bid_price","bid_amount"]
[1736519668056,3.2078,3262.6,3261.1,3.32174319]
[1736519668258,3.55315355,3262.7,3260.6,1.688]
[1736519668259,3.55315355,3262.7,3262.5,40.8]
[1736519668452,1.99067,3263.6,3262.5,40.8]
[1736519668453,3.2078,3263.0,3262.5,40.8]
[1736519668662,3.2078,3262.6,3262.5,40.8]
[1736519669154,3.2078,3263.0,3262.5,40.8]
[1736519669854,3.2078,3263.0,3262.7,0.3065]
[1736519670055,0.3064,3263.9,3263.1,0.30647]
[1736519670354,3.2078,3264.1,3263.5,3.2078]
[1736519670761,3.51418,3264.1,3263.6,40.8]
[1736519670961,3.2078,3264.1,3263.6,40.8]
[1736519671159,0.30641,3263.7,3263.6,40.8]
[1736519671454,3.2078,3263.7,3262.4,3.2078]
[1736519671657,3.51425,3263.3,3262.6,0.30651]
[1736519671857,3.51425,3263.3,3262.3,3.32174319]
[1736519671858,3.2078,3263.3,3262.3,3.2078]
[1736519672059,3.2078,3263.3,3261.8,3.32174319]
[1736519672270,3.51426,3263.2,3262.5,0.30652]
[1736519672566,3.51426,3263.2,3262.6,40.8]
[1736519672567,3.2078,3263.2,3262.6,40.8]
[1736519672757,3.2078,3263.6,3262.1,3.2078]
[1736519672959,3.2078,3263.2,3262.0,3.2078]
[1736519673161,3.2078,3263.2,3261.4,2.899]
[1736519673162,0.30652,3262.6,3261.9,0.30658]
[1736519673362,3.2078,3262.8,3261.6,40.8]
[1736519673865,3.2078,3263.3,3262.1,3.2078]
[1736519674162,3.2078,3263.3,3261.8,3.32174319]
[1736519674163,4.3174,3263.7,3262.5,3.2078]
[1736519674364,4.3174,3263.7,3263.1,0.30646]
[1736519674563,0.30644,3263.5,3262.5,3.2078]
[1736519674765,4.3174,3263.7,3262.5,3.2078]
[1736519675454,3.2078,3263.3,3262.6,0.30651]
[1736519675654,0.30646,3263.2,3262.5,3.2078]
[1736519675854,3.2078,3263.3,3262.5,3.2078]
[1736519676060,1.1096,3263.7,3263.1,0.30646]
[1736519676256,3.2078,3263.9,3262.5,3.2078]
[1736519676462,3.2078,3264.0,3262.5,3.2078]
[1736519676662,0.30641,3263.8,3262.5,3.2078]
[1736519676871,0.30643,3263.6,3262.5,3.2078]
[1736519677162,3.2078,3263.6,3263.0,0.30648]
[1736519677361,3.2078,3264.1,3262.9,3.2078]
[1736519677561,3.2078,3264.1,3263.4,3.2078]
[1736519677763,3.2078,3264.6,3263.3,6.52954319]
[1736519677960,3.2078,3264.6,3263.8,0.3064]
[1736519678164,3.56741194,3264.9,3264.2,0.30636]
[1736519678357,3.56741194,3264.9,3264.3,3.32174319]
[1736519678560,3.56741194,3264.9,3264.8,0.30631]
[1736519678857,3.56741194,3264.9,3264.6,0.30632]
[1736519679063,0.30624,3265.6,3264.5,0.30633]
[1736519679260,3.2078,3265.5,3264.3,9.50284319]
[1736519679463,3.56741194,3265.7,3264.7,0.30631]
[1736519679669,3.56741194,3265.7,3264.6,3.2078]
[1736519679865,3.56741194,3265.7,3264.3,6.29504319]
[1736519680166,3.2078,3265.5,3264.7,0.30632]
[1736519680368,3.2078,3265.5,3265.0,40.8]
[1736519680561,1.1956,3266.0,3265.0,40.8]
[1736519680562,3.51408,3265.1,3265.0,40.8]
[1736519680761,3.2078,3265.1,3263.6,0.30642]
[1736519681063,3.2078,3264.6,3263.8,3.2078]
[1736519681260,3.2078,3265.0,3264.3,0.30635]
[1736519681471,3.2078,3265.0,3264.2,3.2078]
[1736519681671,3.2078,3265.0,3264.3,0.30635]
[1736519681871,3.2078,3265.4,3264.6,3.2078]
[1736519682167,3.56741194,3265.8,3264.8,3.32174319]
[1736519682374,3.56741194,3265.8,3265.3,3.32174319]
[1736519682567,3.56741194,3265.8,3265.7,0.30622]
[1736519682965,3.2078,3266.8,3265.4,3.2078]
[1736519682966,6.77521194,3266.8,3265.4,3.2078]
[1736519683169,6.77521194,3266.8,3265.7,42.00206899]
[1736519683567,0.30614,3266.7,3265.7,42.30828899]
[1736519683764,0.30614,3266.6,3265.8,0.46233423]
[1736519684075,0.30618,3266.2,3265.8,1.20206899]
[1736519684273,3.2078,3266.4,3265.8,1.20206899]
[1736519684469,3.2078,3266.4,3266.0,0.30619]
[1736519684665,3.2078,3266.4,3265.9,1.50826899]
[1736519684863,3.2078,3266.4,3265.9,1.20206899]
[1736519685465,3.51396,3266.4,3266.0,1.20206899]
[1736519685667,3.2078,3266.4,3266.0,1.20206899]
[1736519685867,0.30619,3266.1,3264.8,1.34008809]
[1736519686076,0.30622,3265.8,3264.9,0.30629]
[1736519686271,3.2078,3265.5,3264.8,1.34008809]
[1736519686471,3.51405,3265.5,3264.6,0.30632]
[1736519686774,3.2078,3265.1,3264.5,40.8]
[1736519686978,0.30633,3264.6,3263.9,1.702]
[1736519687270,3.2078,3264.7,3263.8,1.34008809]
[1736519687572,3.2078,3264.3,3263.7,3.2078]
[1736519688077,3.2078,3263.8,3262.9,4.3688]
[1736519688279,3.2078,3263.8,3263.3,3.2078]
[1736519688474,0.3064,3263.9,3263.2,0.30645]
[1736519688775,3.2078,3263.5,3262.5,3.2078]
[1736519688976,3.2078,3263.5,3261.9,1.34008809]
[1736519688977,0.3065,3262.8,3262.1,0.30656]
[1736519689274,3.2078,3263.0,3262.0,3.2078]
[1736519689476,3.51435,3262.3,3261.7,1.1798]
[1736519689675,0.30658,3261.9,3261.4,1.34008809]
[1736519689974,3.2078,3261.9,3261.4,1.34008809]
[1736519690178,0.3066,3261.8,3261.4,1.34008809]
[1736519690374,3.2078,3261.5,3260.8,0.30668]
[1736519690878,3.2078,3261.5,3261.4,40.8]
[1736519692266,1.238,3262.5,3261.4,40.8]
[1736519692472,1.238,3262.5,3261.4,44.0078]
[1736519692780,3.2078,3262.6,3261.4,44.0078]
[1736519693170,3.2078,3263.0,3262.2,3.2078]
[1736519693381,3.51424,3263.5,3262.8,0.30649]
[1736519693678,3.56741194,3263.8,3262.2,1.703]
[1736519693679,3.2078,3262.9,3262.2,1.703]
[1736519693878,3.2078,3262.9,3261.7,3.32174319]
[1736519694179,3.2078,3262.5,3261.4,45.7108]
[1736519694580,3.2078,3262.1,3261.4,45.7108]
[1736519694880,0.30659,3261.8,3261.4,42.503]
[1736519695079,3.2078,3262.1,3261.4,42.503]
[1736519695080,0.30658,3262.0,3261.4,42.503]
[1736519695280,3.2078,3262.1,3261.4,42.503]
[1736519695574,0.30659,3261.8,3261.4,42.503]
[1736519695774,3.51442,3261.5,3261.4,40.8]
[1736519695981,1.703,3262.8,3261.4,40.8]
[1736519695982,3.2078,3262.0,3261.4,40.8]
[1736519696277,3.2078,3261.6,3261.4,40.8]
[1736519696480,0.30662,3261.5,3261.4,40.8]
[1736519696778,3.51441,3261.6,3261.4,40.8]
[1736519696983,3.2078,3261.6,3261.4,40.8]
[1736519697377,0.30662,3261.5,3261.4,40.8]
[1736519697883,5.0,3261.5,3260.2,3.2078]
[1736519698075,3.2078,3260.8,3259.7,3.32174319]
[1736519698271,3.2078,3260.8,3260.5,0.30671]
[1736519698483,3.2078,3260.8,3260.6,40.8]
[1736519698981,3.2078,3260.8,3260.7,0.45432235]
[1736519699285,3.2078,3261.9,3260.7,3.77606554]
[1736519699477,3.2078,3261.9,3260.9,3.2078]
[1736519699683,3.51439,3261.9,3261.2,0.30664]
[1736519699877,3.51439,3261.9,3260.9,3.2078]
[1736519699878,3.2078,3261.9,3261.3,0.30664]
[1736519700086,3.2078,3261.9,3261.3,0.45432235]
[1736519700480,6.71969194,3262.7,3260.9,3.2078]
[1736519700784,3.2078,3261.6,3260.6,40.8]
[1736519701180,0.30668,3260.9,3260.6,40.8]
[1736519701390,3.2078,3261.1,3260.7,0.45373071]
[1736519701589,0.30667,3260.9,3260.8,0.45373071]
[1736519702085,0.30667,3260.9,3259.1,3.2078]
[1736519702086,2.386,3260.7,3259.1,3.2078]
[1736519702278,2.386,3260.7,3259.4,40.8]
[1736519702279,3.2078,3259.9,3259.4,40.8]
[1736519702480,3.2078,3260.0,3259.4,40.8]
[1736519702678,3.2078,3260.0,3258.5,3.2078]
[1736519702679,3.2078,3259.6,3258.5,3.2078]
[1736519702883,0.30686,3259.0,3258.3,0.30691]
[1736519703084,3.2078,3258.7,3257.9,3.2078]
[1736519703287,3.2078,3258.3,3257.8,40.8]
[1736519703593,0.30699,3257.6,3257.3,9.36425462]
[1736519703784,3.2078,3257.9,3257.3,9.36425462]
[1736519703989,3.2078,3257.9,3256.9,3.32174319]
[1736519704287,3.2078,3258.8,3257.4,3.32174319]
[1736519704488,3.2078,3258.8,3256.7,1.679]
[1736519704489,3.2078,3258.8,3257.9,3.32174319]
[1736519704689,0.30683,3259.3,3258.6,0.30689]
[1736519704986,3.2078,3259.8,3259.5,0.3068]
[1736519705297,3.51452,3260.4,3259.6,41.10679]
[1736519705586,3.2078,3260.4,3259.7,0.30678]
[1736519705781,3.2078,3260.8,3259.9,6.52954319]
[1736519705984,3.2078,3260.8,3260.4,0.30671]
[1736519706186,3.2078,3260.8,3260.2,0.30674]
[1736519706389,3.2078,3260.3,3259.7,1.679]
[1736519706589,3.2078,3260.3,3259.6,40.8]
[1736519706887,0.30679,3259.7,3259.6,40.8]
[1736519707188,0.30679,3259.7,3257.8,8.90664319]
[1736519707189,0.76698,3259.7,3257.8,8.90664319]
[1736519707390,3.2078,3258.7,3257.8,5.5849]
[1736519707691,3.2078,3258.7,3257.8,2.3771]
[1736519707885,0.3069,3258.6,3257.9,0.30695]
[1736519708083,3.2078,3258.3,3257.5,7.02163865]
[1736519708283,3.2078,3257.7,3257.5,7.02163865]
[1736519708497,3.2078,3257.7,3257.3,9.36218487]
[1736519708498,3.2078,3257.7,3256.8,1.1913]
[1736519708683,3.2078,3257.3,3256.6,3.2078]
[1736519708883,0.30699,3257.6,3256.9,0.30705]
[1736519709290,3.2078,3257.7,3256.6,3.2078]
[1736519709491,3.2078,3257.7,3257.1,0.30703]
[1736519709792,3.2078,3257.7,3256.6,3.2078]
[1736519709989,5.60026,3258.5,3256.3,1.1913]
[1736519709990,3.2078,3257.2,3256.3,1.1913]
[1736519710197,3.2078,3256.4,3255.9,0.30714]
[1736519710394,3.51487,3256.8,3256.1,0.30712]
[1736519710693,3.2078,3256.8,3256.4,0.3071]
[1736519710992,3.2078,3257.2,3256.0,44.0078]
[1736519711192,1.68,3258.1,3256.3,3.2078]
[1736519711193,3.2078,3257.6,3256.3,3.2078]
[1736519711388,3.2078,3257.6,3256.9,0.30705]
[1736519711687,3.2078,3257.6,3256.8,3.2078]
[1736519711886,0.30705,3257.0,3256.4,1.68]
[1736519712082,3.2078,3256.8,3256.0,44.0078]
[1736519712284,3.2078,3256.8,3256.5,0.30709]
[1736519712486,3.2078,3257.4,3256.6,0.30707]
[1736519712686,3.2078,3257.4,3256.7,0.30707]
[1736519713187,3.2078,3257.4,3256.6,3.2078]
[1736519713389,3.2078,3257.8,3256.6,3.2078]
[1736519713688,3.2078,3258.4,3257.2,6.52954319]
[1736519713894,3.2078,3258.0,3257.3,0.30701]
[1736519714086,3.2078,3258.0,3257.2,0.30702]
[1736519714298,3.2078,3257.6,3256.9,0.30705]
[1736519714488,3.2078,3257.6,3256.7,6.141]
[1736519714794,3.2078,3258.0,3257.2,3.32174319]
[1736519714995,3.2078,3258.0,3257.8,0.30696]
[1736519715195,3.2078,3258.0,3257.2,3.32174319]
[1736519715196,3.2078,3258.0,3257.6,0.30698]
[1736519715394,0.30696,3257.9,3257.1,4.8878]
[1736519715591,3.2078,3258.0,3257.2,3.32174319]
[1736519715891,3.2078,3258.4,3257.7,40.8]
[1736519716088,3.2078,3259.3,3258.3,3.2078]
[1736519716291,3.2078,3259.3,3258.2,3.32174319]
[1736519716292,3.51459,3259.7,3258.9,0.30685]
[1736519716492,0.30681,3259.5,3258.7,3.51467]
[1736519716686,0.3068,3259.6,3258.7,3.2078]
[1736519716998,3.2078,3258.8,3258.4,0.44826067]
[1736519717300,0.30697,3257.8,3256.9,2.3555]
[1736519717495,0.30703,3257.2,3256.5,2.89066809]
[1736519717690,3.2078,3257.1,3256.7,0.30706]
[1736519717890,3.2078,3257.6,3256.8,40.8]
[1736519718196,1.2192,3258.3,3256.8,41.24974365]
[1736519718197,3.2078,3257.2,3256.8,41.24974365]
[1736519718695,3.2078,3257.2,3256.9,0.75679365]
[1736519718897,3.2078,3257.2,3256.9,0.44974365]
[1736519719198,0.30695,3258.0,3257.3,0.30701]
[1736519719401,3.2078,3258.2,3257.3,3.2078]
[1736519719600,3.2078,3258.2,3257.4,0.44974365]
[1736519719795,3.51479,3257.5,3257.4,0.44974365]
[1736519720504,3.2078,3257.5,3257.4,0.44974365]
[1736519720796,3.51474,3258.1,3257.6,0.30698]
[1736519720996,3.2078,3258.5,3257.4,0.44974365]
[1736519721193,1.68,3258.8,3257.4,0.44974365]
[1736519721194,3.2078,3257.9,3257.4,0.44974365]
[1736519721394,3.2078,3257.9,3257.5,41.24974365]
[1736519721589,0.30699,3257.6,3257.5,41.24974365]
[1736519721903,3.2078,3257.9,3256.6,3.2078]
[1736519721904,0.30703,3257.2,3256.7,0.30707]
[1736519722195,0.30703,3257.2,3256.8,0.45003434]
[1736519722196,3.2078,3257.2,3256.8,0.45003434]
[1736519722400,3.2078,3257.2,3256.8,41.25003434]
[1736519722599,0.30704,3257.1,3256.9,0.45003434]
[1736519722989,3.2078,3257.8,3257.1,0.30703]
[1736519723195,3.2078,3257.3,3257.0,0.30704]
[1736519723399,3.51481,3257.3,3257.2,0.45003434]
[1736519723699,8.51481,3257.3,3257.2,0.45003434]
[1736519723999,0.76759,3257.1,3255.5,3.2078]
[1736519724196,3.2078,3256.3,3256.0,0.30713]
[1736519724398,3.2078,3256.3,3255.6,40.8]
[1736519724800,4.41999,3257.2,3256.0,0.30713]
[1736519724801,0.30709,3256.5,3256.0,0.30713]
[1736519724996,3.2078,3256.8,3255.6,40.8]
[1736519725292,0.30708,3256.7,3255.6,40.8]
[1736519725498,3.2078,3256.8,3255.6,40.8]
[1736519725699,3.2078,3256.4,3255.6,40.8]
[1736519725894,3.5149,3256.4,3255.9,0.30714]
[1736519726091,3.2078,3256.0,3255.6,41.10717]
[1736519726298,3.2078,3256.0,3255.6,40.8]
[1736519726690,3.2078,3256.6,3255.6,40.8]
[1736519726890,3.2078,3256.1,3255.6,40.8]
[1736519727094,3.2078,3255.7,3254.7,5.5566]
[1736519727299,3.32174319,3255.0,3253.1,3.2078]
[1736519727494,3.2078,3254.3,3253.1,3.2078]
[1736519727800,3.2078,3253.9,3253.5,0.30736]
[1736519727998,0.30731,3254.2,3253.4,0.30738]
[1736519728197,3.2078,3254.8,3253.6,3.2078]
[1736519728400,3.2078,3254.8,3254.1,3.2078]
[1736519728695,3.2078,3255.3,3254.2,1.719]
[1736519728999,3.32174319,3256.0,3253.6,6.52954319]
[1736519729000,3.2078,3254.9,3253.6,6.52954319]
[1736519729195,3.2078,3254.4,3253.7,0.30734]
[1736519729395,3.2078,3254.4,3253.3,3.2078]
[1736519729597,3.2078,3253.8,3253.3,0.30739]
[1736519729802,0.30736,3253.7,3253.2,40.8]
[1736519729997,3.2078,3253.8,3253.2,40.8]
[1736519730402,3.2078,3253.3,3253.2,40.8]
[1736519730705,3.2078,3253.9,3253.2,40.8]
[1736519731100,3.32174319,3254.5,3253.2,40.8]
[1736519731101,4.3743,3254.4,3253.2,40.8]
[1736519731499,0.3073,3254.3,3253.2,40.8]
[1736519731799,4.3743,3254.4,3253.2,40.8]
[1736519732007,4.3743,3254.4,3253.7,3.2078]
[1736519732298,4.3942,3254.9,3254.3,0.30729]
[1736519732499,3.2078,3254.9,3254.1,3.2078]
[1736519732906,3.2078,3254.9,3254.8,40.8]
[1736519733101,3.2078,3255.4,3254.8,40.8]
[1736519733304,3.2078,3255.4,3254.8,44.0078]
[1736519733604,3.2078,3255.8,3255.3,3.2078]
[1736519733793,3.2078,3255.8,3254.3,2.7492709]
[1736519733794,3.2078,3255.8,3255.4,3.2078]
[1736519734000,3.2078,3255.8,3254.3,3.2078]
[1736519734001,3.32174319,3255.5,3254.3,3.2078]
[1736519734195,3.2078,3255.1,3254.7,40.8]
[1736519734406,0.30725,3254.8,3254.7,40.8]
[1736519734999,3.2078,3255.1,3253.9,3.2078]
[1736519735402,0.30723,3255.0,3254.3,3.2078]
[1736519735606,1.2089,3255.4,3254.4,40.8]
[1736519735807,0.30724,3254.9,3254.5,0.30727]
[1736519736002,0.30728,3254.5,3254.4,40.8]
[1736519736303,3.2078,3255.2,3254.4,40.8]
[1736519736510,1.2089,3255.4,3254.7,3.2078]
[1736519736706,1.2089,3255.4,3254.6,3.2078]
[1736519736902,1.2089,3255.4,3255.1,0.30722]
[1736519737103,1.5161,3255.4,3255.0,0.30723]
[1736519737404,1.2089,3255.4,3254.6,3.2078]
[1736519737607,0.30714,3256.0,3255.5,0.30718]
[1736519737908,1.1744,3256.2,3254.7,3.2078]
[1736519737909,3.2078,3255.6,3254.7,3.2078]
[1736519738303,3.2078,3255.6,3254.9,0.30724]
[1736519738500,3.2078,3255.6,3254.7,3.2078]
[1736519738708,0.30717,3255.6,3254.7,0.30726]
[1736519739001,0.30717,3255.6,3254.6,0.76817]
[1736519739002,3.2078,3255.6,3254.6,3.2078]
[1736519739200,3.2078,3254.9,3254.4,40.8]
[1736519739401,3.2078,3254.9,3254.0,0.30732]
[1736519739402,0.30729,3254.4,3254.0,0.30732]
[1736519739600,3.2078,3254.9,3253.3,3.2078]
[1736519739906,3.2078,3254.9,3253.9,3.2078]
[1736519740106,0.30728,3254.5,3254.0,0.30732]
[1736519740310,3.51504,3254.9,3254.4,0.30728]
[1736519740609,3.2078,3255.3,3253.9,3.2078]
[1736519740806,3.2078,3255.3,3254.3,3.2078]
[1736519741012,3.2078,3255.3,3254.8,3.2078]
[1736519741202,3.2078,3255.8,3254.8,3.2078]
[1736519741404,0.30724,3255.0,3254.5,0.30728]
[1736519741607,0.3072,3255.3,3254.4,0.30729]
[1736519741909,3.2078,3254.7,3253.7,3.2078]
[1736519742210,0.30732,3254.1,3253.6,0.30736]
[1736519742409,3.2078,3254.7,3253.7,3.2078]
[1736519742610,3.2078,3254.7,3253.2,2.0227]
[1736519742611,0.01869211,3254.2,3253.8,3.2078]
[1736519742805,0.01869211,3254.2,3254.1,3.51512]
[1736519743209,0.01869211,3254.2,3254.1,8.51512]
[1736519743411,0.01865688,3254.2,3254.1,49.31512]
[1736519743712,3.2078,3256.0,3254.1,52.32954319]
[1736519743909,3.2078,3256.0,3255.2,0.3072]
[1736519743910,0.30716,3255.8,3255.2,0.3072]
[1736519744115,3.2078,3256.0,3254.7,3.2078]
[1736519744410,0.30721,3255.3,3254.7,3.51505]
[1736519744711,0.30724,3255.0,3254.7,3.2078]
[1736519745011,0.30731,3254.2,3254.1,44.0078]
[1736519745202,3.2078,3254.8,3253.3,3.2078]
[1736519745405,0.30734,3253.8,3253.3,3.51519]
[1736519745712,0.30737,3253.5,3253.4,40.8]
[1736519746008,0.3074,3253.3,3252.9,3.2078]
[1736519746210,3.2078,3253.6,3252.9,3.2078]
[1736519746413,0.3074,3253.3,3253.0,40.8]
[1736519746712,3.2078,3253.6,3253.0,40.8]
[1736519746907,0.30738,3253.5,3253.0,41.10742]
[1736519747108,3.2078,3254.0,3253.0,40.8]
[1736519747809,3.2078,3253.5,3253.0,40.8]
[1736519748005,3.2078,3253.9,3253.0,40.8]
[1736519748207,1.1649,3254.1,3253.0,40.8]
[1736519748208,0.30735,3253.8,3253.0,40.8]
[1736519748402,1.1649,3254.1,3253.0,40.8]
[1736519748609,3.2078,3253.9,3253.0,40.8]
[1736519749313,3.2078,3253.9,3253.2,3.2078]
[1736519749513,3.2078,3254.3,3253.8,3.2078]
[1736519749809,3.5151,3254.3,3253.9,0.30733]
[1736519750115,3.2078,3254.3,3253.8,3.2078]
[1736519750515,0.30734,3253.8,3253.5,3.2078]
[1736519750709,0.30733,3254.0,3253.5,0.30737]
[1736519750911,0.04100326,3254.1,3253.5,3.2078]
[1736519751111,0.30733,3254.0,3253.5,3.51517]
[1736519751307,0.04100326,3254.1,3253.1,1.1892]
[1736519751515,0.04691411,3253.6,3253.0,40.8]
[1736519751822,0.30738,3253.5,3253.0,40.8]
[1736519752021,0.04691411,3253.6,3253.0,40.8]
[1736519752616,0.04691411,3253.3,3253.0,40.8]
[1736519752825,0.04691411,3253.3,3253.2,3.5152]
[1736519753322,0.04691411,3253.3,3253.2,3.2078]
[1736519753821,0.04691411,3253.3,3253.2,3.5152]
[1736519754117,3.2078,3254.3,3253.2,8.2078]
[1736519754318,3.2078,3254.3,3253.1,3.32174319]
[1736519754319,3.2078,3254.3,3253.7,3.2078]
[1736519754515,0.30731,3254.2,3253.7,3.51515]
[1736519754720,3.5151,3254.3,3254.0,40.8]
[1736519754917,3.2078,3254.8,3254.0,40.8]
[1736519755117,0.30732,3254.1,3254.0,40.8]
[1736519755320,0.30732,3254.1,3253.2,1.1638]
[1736519755321,3.2078,3254.4,3253.5,3.2078]
[1736519755517,0.30732,3254.1,3253.7,0.30735]
[1736519755818,0.30731,3254.2,3253.8,40.8]
[1736519756020,0.30732,3254.1,3253.8,40.8]
[1736519756323,0.76818,3254.6,3253.8,40.8]
[1736519756324,0.30731,3254.2,3253.8,40.8]
[1736519756622,0.76818,3254.6,3253.8,40.8]
[1736519756821,0.3073,3254.3,3253.9,0.30733]
[1736519757019,3.2078,3254.8,3254.2,3.2078]
[1736519757223,3.2078,3255.4,3254.3,1.04034147]
[1736519757524,3.32174319,3256.0,3254.8,3.51505]
[1736519757525,0.03626588,3254.9,3254.8,3.51505]
[1736519757817,0.03626588,3254.9,3254.8,5.74072498]
[1736519758119,2.3561515,3256.0,3255.9,0.30715]
[1736519758424,8.23655606,3257.3,3256.5,0.30709]
[1736519758621,1.1899,3258.0,3256.6,3.32174319]
[1736519758813,0.30696,3257.9,3257.3,3.2078]
[1736519759018,0.30699,3257.6,3256.9,3.2078]
[1736519759325,0.30698,3257.7,3256.5,41.10708]
[1736519759519,3.2078,3257.8,3256.9,3.2078]
[1736519759722,1.2197,3257.9,3257.2,3.2078]
[1736519759919,1.2197,3257.9,3257.4,0.307]
[1736519760113,1.2197,3257.9,3257.1,3.2078]
[1736519760321,0.30705,3256.9,3256.5,40.8]
[1736519760520,3.2078,3257.0,3255.9,3.2078]
[1736519760728,0.3071,3256.4,3255.9,3.2078]
[1736519760921,3.32174319,3257.5,3255.9,3.2078]
[1736519760922,3.2078,3256.6,3255.9,3.2078]
[1736519761122,3.2078,3256.6,3255.6,3.2078]
[1736519761320,3.2078,3256.6,3255.3,2.0232]
[1736519761321,0.30714,3256.0,3255.3,2.0232]
[1736519761524,3.2078,3256.6,3255.6,3.2078]
[1736519762026,3.51488,3256.6,3256.0,0.30713]
[1736519762216,3.2078,3256.6,3256.0,3.2078]
[1736519762419,1.2488,3257.4,3256.5,6.52954319]
[1736519762621,4.4275,3257.9,3257.3,3.2078]
[1736519762822,4.4275,3257.9,3257.4,3.66878426]
[1736519763416,4.4275,3257.9,3257.5,0.30699]
[1736519763623,1.1827,3258.6,3257.8,3.2078]
[1736519763624,3.2078,3258.3,3257.8,3.2078]
[1736519763833,1.1827,3258.6,3258.2,3.51473]
[1736519764028,3.51467,3258.9,3258.2,3.51473]
[1736519764029,3.2078,3258.9,3258.4,0.30691]
[1736519764326,3.2078,3258.9,3258.2,3.2078]
[1736519764722,3.2078,3258.9,3258.5,0.3069]
[1736519764923,1.1827,3259.6,3258.6,3.2078]
[1736519765125,1.1827,3259.6,3259.2,0.30683]
[1736519765325,3.2078,3259.9,3259.2,3.2078]
[1736519765519,3.2078,3259.9,3258.7,0.46098426]
[1736519765520,3.2078,3259.3,3258.7,0.46098426]
[1736519765939,3.2078,3258.8,3258.2,0.30693]
[1736519766129,3.51467,3258.8,3258.4,3.2078]
[1736519766426,3.2078,3258.8,3258.4,3.2078]
[1736519766625,3.2078,3258.8,3258.3,0.45891891]
[1736519766824,0.30694,3258.1,3257.1,3.2078]
[1736519767030,3.2078,3257.9,3257.1,3.2078]
[1736519767229,3.2078,3257.5,3256.7,3.2078]
[1736519767425,3.2078,3257.5,3256.3,10.18450436]
[1736519767729,3.2078,3256.7,3255.1,4.4029]
[1736519767928,3.2078,3256.2,3255.1,4.4029]
[1736519768229,2.8449,3256.9,3255.7,3.2078]
[1736519768429,1.1299,3256.9,3256.1,3.2078]
[1736519768624,1.1299,3256.9,3255.8,0.30715]
[1736519768825,0.3071,3256.4,3255.8,0.30715]
[1736519769026,3.2078,3256.3,3255.7,4.9228]
[1736519769222,3.2078,3256.3,3255.7,3.2078]
[1736519769427,0.30719,3255.5,3254.8,0.30724]
[1736519769628,3.2078,3255.8,3254.7,1.715]
[1736519770025,0.30717,3255.7,3254.8,0.30724]
[1736519770224,0.30721,3255.2,3254.5,0.30728]
[1736519770522,0.30725,3254.8,3254.4,40.8]
[1736519770725,0.30725,3254.8,3253.1,1.34347503]
[1736519770726,3.2078,3254.8,3253.6,3.2078]
[1736519771026,3.2078,3254.6,3253.9,0.30733]
[1736519771228,3.2078,3254.6,3254.0,40.8]
[1736519771428,1.1626,3255.4,3253.1,4.4281]
[1736519771429,3.2078,3254.2,3253.1,4.4281]
[1736519771627,3.2078,3254.2,3253.5,3.2078]
[1736519771823,3.2078,3254.2,3253.1,1.2203]
[1736519771824,3.51511,3254.2,3253.4,3.51518]
[1736519772030,3.2078,3254.6,3253.6,40.8]
[1736519772226,0.30732,3254.1,3253.6,40.8]
[1736519772425,3.2078,3254.2,3253.6,40.8]
[1736519772633,3.2078,3254.8,3253.7,3.2078]
[1736519772935,0.30731,3254.2,3253.6,40.8]
[1736519773225,0.30732,3254.1,3253.6,40.8]
[1736519773428,3.2078,3254.4,3253.6,40.8]
[1736519773736,4.4824,3254.8,3254.0,3.2078]
[1736519773936,3.2078,3255.2,3254.4,3.2078]
[1736519774232,0.30725,3254.9,3253.9,3.2078]
[1736519774431,0.30725,3254.9,3253.8,1.715]
[1736519774432,3.2078,3255.2,3254.3,3.2078]
[1736519774631,1.2367,3255.8,3255.1,3.2078]
[1736519774937,7.0599052,3256.7,3255.5,3.32174319]
[1736519775235,3.2078,3257.1,3256.6,40.8]
[1736519775429,0.30707,3256.7,3256.6,40.8]
[1736519775633,3.2078,3256.9,3256.7,0.30707]
[1736519775932,1.2367,3257.5,3256.8,3.2078]
[1736519776123,7.0599052,3258.2,3257.2,3.2078]
[1736519776327,1.1966,3258.4,3257.6,3.2078]
[1736519776532,0.76704,3259.5,3256.6,40.8]
[1736519776533,3.2078,3259.9,3258.0,6.52954319]
[1736519776728,3.2078,3259.9,3258.8,0.30686]
[1736519776928,3.2078,3259.9,3259.4,3.2078]
[1736519777131,3.2078,3259.9,3258.5,3.32174319]
[1736519777132,3.2078,3259.9,3259.1,3.2078]
[1736519777533,0.30679,3259.8,3259.0,0.30685]
[1736519777833,1.2172,3260.4,3259.3,3.2078]
[1736519777834,4.425,3260.4,3259.3,3.2078]
[1736519778031,4.425,3260.4,3259.7,3.2078]
[1736519778225,4.425,3260.4,3259.3,3.51462]
[1736519778226,0.30675,3260.1,3259.3,3.51462]
[1736519778427,3.2078,3260.4,3259.3,3.2078]
[1736519778740,3.2078,3260.4,3259.7,3.2078]
[1736519778932,3.2078,3259.8,3259.4,0.4521009]
[1736519779326,0.3068,3259.6,3258.7,3.51468]
[1736519779531,3.2078,3259.8,3258.7,6.52954319]
[1736519779736,3.2078,3260.6,3259.1,3.2078]
[1736519780039,3.2078,3260.2,3259.1,3.2078]
[1736519780336,3.2078,3260.2,3259.0,1.715]
[1736519780337,0.30666,3261.1,3260.3,0.30673]
[1736519780527,5.94909045,3262.3,3260.4,3.2078]
[1736519780528,3.2078,3261.8,3260.4,3.2078]